bitfinex-derivatives/quotes_BTCF0:USTF0_20250222
["timestamp","ask_amount","ask_price","bid_price","bid_amount"]
[1740221926590,0.004,96545.0,96544.0,0.98911966]
[1740221927890,0.2111945,96545.0,96544.0,0.75102296]
[1740221928090,0.2111945,96545.0,96544.0,0.95821966]
[1740221929392,0.2111945,96545.0,96544.0,0.98941966]
[1740221929588,0.004,96545.0,96544.0,0.98941966]
[1740221929785,0.2111945,96545.0,96544.0,0.98941966]
[1740221930386,0.2111945,96545.0,96544.0,0.7410167]
[1740221936191,0.004,96545.0,96544.0,0.7410167]
[1740221936496,0.2111945,96545.0,96544.0,0.7410167]
[1740221936698,0.004,96545.0,96544.0,0.7410167]
[1740221951102,0.004,96545.0,96544.0,0.7510167]
[1740221951296,0.0001554,96551.0,96544.0,0.54382]
[1740221951509,0.15546041,96559.0,96550.0,0.01]
[1740221951702,0.15546041,96559.0,96558.0,0.2071666]
[1740221951901,0.15546041,96559.0,96558.0,0.3166466]
[1740221953605,0.15546041,96559.0,96558.0,0.32723668]
[1740221953802,0.36261201,96565.0,96564.0,0.2071538]
[1740221954301,0.15546041,96565.0,96564.0,0.2395538]
[1740221954812,0.36261201,96565.0,96564.0,0.2395538]
[1740221955113,0.16246041,96565.0,96564.0,0.2395538]
[1740221955701,0.37661201,96565.0,96564.0,0.2395538]
[1740221958213,0.2211516,96565.0,96564.0,0.2395538]
[1740221960819,0.207158,96562.0,96561.0,0.3608]
[1740221961017,0.2071645,96559.0,96558.0,0.10948]
[1740221961211,0.2071645,96559.0,96558.0,0.3166466]
[1740221961419,0.2388645,96559.0,96558.0,0.3166466]
[1740221962027,0.2071709,96556.0,96555.0,0.39348791]
[1740221962222,0.2071709,96556.0,96555.0,0.50288791]
[1740221962413,0.2374709,96556.0,96555.0,0.50288791]
[1740221962613,0.2374709,96556.0,96555.0,0.39348791]
[1740221962919,0.2374709,96556.0,96555.0,0.50288791]
[1740221963310,0.2424709,96556.0,96555.0,0.50288791]
[1740221963621,0.2424709,96556.0,96555.0,0.18631651]
[1740221964018,0.2484709,96556.0,96555.0,0.39348961]
[1740221965221,0.2484709,96556.0,96555.0,0.2071731]
[1740221971321,0.29884443,96556.0,96555.0,0.2071731]
[1740221980433,0.2484709,96556.0,96555.0,0.2071731]
[1740221986135,0.2484709,96556.0,96555.0,0.22336637]
[1740221989032,0.2071731,96555.0,96554.0,0.07422]
[1740221989334,0.2071731,96555.0,96554.0,0.04899327]
[1740221990433,0.2071731,96555.0,96554.0,0.25616847]
[1740221991035,0.2131731,96555.0,96554.0,0.25616847]
[1740221991336,0.2181731,96555.0,96554.0,0.25616847]
[1740221991536,0.2181731,96555.0,96554.0,0.04899327]
[1740221991731,0.2181731,96555.0,96554.0,0.25616847]
[1740221992633,0.2181731,96555.0,96554.0,0.0328]
[1740221992832,0.2071838,96550.0,96548.0,0.2071875]
[1740221993034,0.5679838,96550.0,96547.0,0.258986]
[1740221993230,0.5998838,96550.0,96548.0,0.2071873]
[1740221993835,0.5998838,96550.0,96549.0,0.2073413]
[1740221994339,0.6028838,96550.0,96549.0,0.2073413]
[1740221994738,0.61731394,96550.0,96549.0,0.2073413]
[1740221995131,0.6068838,96550.0,96549.0,0.2073413]
[1740221996635,0.65726172,96550.0,96549.0,0.2073413]
[1740221997035,0.65726172,96550.0,96549.0,0.22353593]
[1740222001047,0.6068838,96550.0,96549.0,0.22353593]
[1740222001637,0.6068838,96550.0,96549.0,0.2073413]
[1740222003747,0.2460838,96550.0,96549.0,0.2073413]
[1740222009548,0.2460838,96550.0,96549.0,0.0001554]
[1740222009751,0.2460838,96550.0,96549.0,0.2073413]
[1740222010550,0.2141838,96550.0,96549.0,0.2073413]
[1740222029755,0.26455772,96550.0,96549.0,0.2073413]
[1740222039774,0.2141838,96550.0,96549.0,0.39379559]
[1740222044675,0.2141838,96550.0,96549.0,0.2073413]
[1740222048879,0.26455874,96550.0,96549.0,0.2073413]
[1740222053289,0.2141838,96550.0,96549.0,0.2073413]
[1740222061887,0.26455872,96550.0,96549.0,0.2073413]
[1740222064390,0.05737492,96550.0,96549.0,0.2073413]
[1740222066592,0.05737492,96550.0,96549.0,0.3162213]
[1740222069102,0.26455872,96550.0,96549.0,0.3162213]
[1740222070299,0.2141838,96550.0,96549.0,0.3162213]
[1740222070794,0.2141838,96550.0,96549.0,0.6770213]
[1740222072606,0.007,96550.0,96549.0,0.6770213]
[1740222076199,0.007,96550.0,96549.0,0.5681413]
[1740222076396,0.007,96550.0,96549.0,0.6769813]
[1740222077199,0.007,96550.0,96549.0,0.5681413]
[1740222077399,0.007,96550.0,96549.0,0.6769813]
[1740222078493,0.007,96550.0,96549.0,0.92538426]
[1740222082804,0.007,96550.0,96549.0,0.6769813]
[1740222083808,0.007,96550.0,96549.0,0.69317377]
[1740222091520,0.007,96550.0,96549.0,0.33237377]
[1740222091721,0.007,96550.0,96549.0,0.69317377]
[1740222092313,0.007,96550.0,96549.0,0.69317311]
[1740222092708,0.007,96550.0,96549.0,0.58433311]
[1740222092913,0.007,96550.0,96549.0,0.69309311]
[1740222093711,0.007,96550.0,96549.0,0.71900006]
[1740222096220,0.007,96550.0,96549.0,0.71900009]
[1740222098723,0.007,96550.0,96549.0,0.69309314]
[1740222101516,0.007,96550.0,96549.0,1.00125136]
[1740222101914,0.007,96550.0,96549.0,0.64045136]
[1740222102117,0.007,96550.0,96549.0,1.00125136]
[1740222104818,0.007,96550.0,96549.0,0.69309314]
[1740222105922,0.007,96550.0,96549.0,0.33229314]
[1740222106123,0.007,96550.0,96549.0,0.69309314]
[1740222110821,0.007,96550.0,96549.0,0.6769013]
[1740222111220,0.007,96550.0,96549.0,0.6768213]
[1740222113325,0.007,96550.0,96549.0,1.09513511]
[1740222116929,0.0638,96563.0,96562.0,0.207158]
[1740222117233,0.0638,96563.0,96562.0,0.676598]
[1740222117725,0.0638,96563.0,96562.0,0.71869442]
[1740222118120,0.0638,96563.0,96562.0,0.72881918]
[1740222118321,0.0638,96563.0,96562.0,0.70291369]
[1740222118626,0.0708,96563.0,96562.0,0.70291369]
[1740222118832,0.0708,96563.0,96562.0,0.72881918]
[1740222119029,0.0778,96563.0,96562.0,0.72881918]
[1740222119331,0.0778,96563.0,96562.0,0.70291369]
[1740222119639,0.0778,96563.0,96562.0,0.72881918]
[1740222119840,0.0778,96563.0,96562.0,0.70291369]
[1740222124844,0.0778,96563.0,96562.0,0.72881807]
[1740222125240,0.014,96563.0,96562.0,0.72881807]
[1740222126722,0.014,96563.0,96562.0,0.76131807]
[1740222128246,0.0314,96570.0,96567.0,0.2071473]
[1740222128538,0.0314,96570.0,96567.0,0.22333823]
[1740222128742,0.0314,96570.0,96567.0,0.25393823]
[1740222129127,0.15522518,96581.0,96567.0,0.25393823]
[1740222129336,0.0312,96580.0,96567.0,0.25393823]
[1740222129531,0.0141554,96568.0,96567.0,0.27984168]
[1740222130332,0.0141554,96568.0,96567.0,0.27984165]
[1740222130831,0.0141554,96568.0,96567.0,0.25393823]
[1740222131033,0.0131554,96568.0,96567.0,0.25493823]
[1740222131235,0.0131554,96568.0,96567.0,0.25593823]
[1740222131437,0.0131554,96568.0,96567.0,0.25593694]
[1740222131838,0.0131554,96568.0,96567.0,0.50429185]
[1740222132040,0.0061554,96568.0,96567.0,0.50329185]
[1740222132341,0.0131554,96568.0,96567.0,0.51429185]
[1740222132542,0.0312,96580.0,96567.0,0.30714455]
[1740222132743,0.0312,96580.0,96579.0,0.2071216]
[1740222133130,0.0312,96580.0,96579.0,0.2400216]
[1740222134742,0.0322,96580.0,96579.0,0.2410216]
[1740222136235,0.0322,96580.0,96579.0,0.25125666]
[1740222137544,0.001,96580.0,96579.0,0.25125666]
[1740222137751,0.001,96580.0,96579.0,0.26744441]
[1740222139867,0.001,96580.0,96579.0,0.26125666]
[1740222146358,0.001,96580.0,96579.0,0.62205666]
[1740222146958,0.001,96580.0,96579.0,0.63824332]
[1740222149553,0.001,96580.0,96579.0,0.61800826]
[1740222149759,0.001,96580.0,96579.0,0.72083565]
[1740222149948,0.001,96580.0,96579.0,0.6018216]
[1740222150143,0.2081194,96580.0,96579.0,0.5689216]
[1740222150455,0.2740194,96580.0,96579.0,0.3618]
[1740222150659,0.0669,96580.0,96579.0,0.5689216]
[1740222155061,0.0994,96580.0,96579.0,0.5689216]
[1740222156858,0.3065194,96580.0,96579.0,0.5689216]
[1740222157063,0.0994,96580.0,96579.0,0.5689216]
[1740222158947,0.3065194,96580.0,96579.0,0.5689216]
[1740222159158,0.0994,96580.0,96579.0,0.5689216]
[1740222160759,0.0994,96580.0,96579.0,0.2081216]
[1740222162059,0.0994,96580.0,96579.0,0.22431038]
[1740222162663,0.3065194,96580.0,96579.0,0.22431038]
[1740222163053,0.3065194,96580.0,96579.0,0.01718878]
[1740222163365,0.6673194,96580.0,96579.0,0.001]
[1740222163766,0.67791174,96580.0,96579.0,0.001]
[1740222163962,0.2071345,96573.0,96572.0,0.24835491]
[1740222165261,0.2081345,96573.0,96572.0,0.24835491]
[1740222166862,0.2081345,96573.0,96572.0,0.12171936]
[1740222167759,0.2081345,96573.0,96572.0,0.01267236]
[1740222168865,0.2081345,96573.0,96572.0,6e-08]
[1740222169961,0.001,96573.0,96570.0,0.00015531]
[1740222170163,0.5679387,96571.0,96570.0,0.00015531]
[1740222170665,0.6000387,96571.0,96570.0,0.00015531]
[1740222171869,0.6010387,96571.0,96570.0,0.00015531]
[1740222172767,0.6020387,96571.0,96570.0,0.00015531]
[1740222174279,0.65241323,96571.0,96570.0,0.00015531]
[1740222176775,0.29161323,96571.0,96570.0,0.00015531]
[1740222176965,0.65241323,96571.0,96570.0,0.00015531]
[1740222180201,0.68381323,96571.0,96570.0,0.00015531]
[1740222181587,0.2726387,96571.0,96570.0,0.00015531]
[1740222183787,0.3810787,96571.0,96570.0,0.00015531]
[1740222183992,0.7418787,96571.0,96570.0,0.00015531]
[1740222186295,0.7097787,96571.0,96570.0,0.00015531]
[1740222189398,0.7097787,96571.0,96570.0,0.03085531]
[1740222190800,0.3489787,96571.0,96570.0,0.03085531]
[1740222191096,0.7097787,96571.0,96570.0,0.06335531]
[1740222191903,0.3489787,96571.0,96570.0,0.06335531]
[1740222192098,0.7097787,96571.0,96570.0,0.06335531]
[1740222192990,0.76015042,96571.0,96570.0,0.06335531]
[1740222197195,0.84201881,96571.0,96570.0,0.06335531]
[1740222200107,0.93841858,96571.0,96570.0,0.06335531]
[1740222201609,0.93841858,96571.0,96570.0,0.00015531]
[1740222203295,0.84201881,96571.0,96570.0,0.00015531]
[1740222205700,1.06241881,96571.0,96570.0,0.00015531]
[1740222206606,1.06241881,96571.0,96570.0,0.03085531]
[1740222207604,0.98055042,96571.0,96570.0,0.03085531]
[1740222215622,1.14258885,96571.0,96570.0,0.03085531]
[1740222216519,1.14058885,96571.0,96570.0,0.03085531]
[1740222216722,0.64194885,96571.0,96570.0,0.03085531]
[1740222216919,0.64194885,96571.0,96570.0,0.25418814]
[1740222217513,0.43481015,96571.0,96570.0,0.23799621]
[1740222217715,0.43481015,96571.0,96570.0,0.25418752]
[1740222217716,0.21441015,96571.0,96570.0,0.25418752]
[1740222218414,0.11461015,96571.0,96570.0,0.26477251]
[1740222219320,0.11461015,96571.0,96570.0,0.25418679]
[1740222219735,0.002,96571.0,96570.0,0.23799621]
[1740222220024,0.002,96571.0,96570.0,0.2643196]
[1740222220222,0.002,96571.0,96570.0,0.6251196]
[1740222220520,0.002,96571.0,96570.0,0.60892918]
[1740222221127,0.15522533,96576.0,96570.0,0.41178828]
[1740222221426,0.15522533,96576.0,96575.0,0.5679302]
[1740222221819,0.15522533,96576.0,96575.0,0.5983302]
[1740222223522,0.20725534,96589.0,96575.0,0.3912]
[1740222223727,0.20725534,96589.0,96588.0,0.2071023]
[1740222224233,0.20725534,96589.0,96588.0,0.3021023]
[1740222224830,0.20725534,96589.0,96588.0,0.3031023]
[1740222225129,0.20725534,96589.0,96588.0,0.3041023]
[1740222225327,0.20725534,96589.0,96588.0,0.097]
[1740222225629,0.20725534,96589.0,96588.0,0.3041023]
[1740222229833,0.20725534,96589.0,96588.0,0.2725023]
[1740222230622,0.20725534,96589.0,96588.0,0.2091023]
[1740222231338,0.2071023,96588.0,96587.0,0.02588]
[1740222231633,0.2071023,96588.0,96570.0,0.00015531]
[1740222231634,0.2071387,96571.0,96570.0,0.25907371]
[1740222232226,0.2376387,96571.0,96570.0,0.25907371]
[1740222233429,0.2386387,96571.0,96570.0,0.25907371]
[1740222233829,0.001,96571.0,96570.0,0.25907371]
[1740222238038,0.001,96571.0,96570.0,0.36735371]
[1740222244944,0.001,96571.0,96570.0,0.38354247]
[1740222245941,0.001,96571.0,96570.0,0.74434247]
[1740222249848,0.001,96571.0,96570.0,0.72815371]
[1740222251151,0.001,96571.0,96570.0,0.72807371]
[1740222253845,0.001,96571.0,96570.0,0.36727371]
[1740222254039,0.001,96571.0,96570.0,0.72807371]
[1740222259042,0.001,96571.0,96570.0,0.61987371]
[1740222259239,0.001,96571.0,96570.0,0.72807371]
[1740222269551,0.001,96571.0,96570.0,0.97556368]
[1740222269967,0.001,96571.0,96570.0,0.99175253]
[1740222270963,0.0317,96578.0,96577.0,0.2071259]
[1740222271157,0.0317,96578.0,96577.0,0.22331475]
[1740222271462,0.0317,96578.0,96577.0,0.25411475]
[1740222272062,0.15522533,96584.0,96583.0,0.207113]
[1740222272251,0.15522533,96584.0,96583.0,0.58410185]
[1740222272969,0.15522533,96584.0,96583.0,0.69226185]
[1740222273451,0.15622533,96584.0,96583.0,0.69326185]
[1740222273648,0.36333623,96584.0,96583.0,0.69326185]
[1740222273852,0.2081109,96584.0,96583.0,0.58510185]
[1740222274056,0.2081109,96584.0,96583.0,0.568913]
[1740222274765,0.2081109,96584.0,96583.0,0.569913]
[1740222275563,0.2081109,96584.0,96583.0,0.209113]
[1740222275961,0.2081109,96584.0,96583.0,0.22530124]
[1740222276165,0.2081109,96584.0,96583.0,0.23556225]
[1740222276560,0.2081109,96584.0,96583.0,0.22530124]
[1740222276762,0.2081109,96584.0,96583.0,0.209113]
[1740222278261,0.2081109,96584.0,96583.0,0.002]
[1740222278766,0.2081109,96584.0,96583.0,0.209113]
[1740222279969,0.21826299,96584.0,96583.0,0.209113]
[1740222280984,0.2081109,96584.0,96583.0,0.209113]
[1740222285673,0.25847022,96584.0,96583.0,0.209113]
[1740222289073,0.44483311,96584.0,96583.0,0.209113]
[1740222293276,0.2081109,96584.0,96583.0,0.209113]
[1740222301584,0.25847004,96584.0,96583.0,0.209113]
[1740222303174,0.05135914,96584.0,96583.0,0.209113]
[1740222303377,0.25847004,96584.0,96583.0,0.209113]
[1740222303792,0.05135914,96584.0,96583.0,0.209113]
[1740222304083,0.25847004,96584.0,96583.0,0.209113]
[1740222304289,0.05135914,96584.0,96583.0,0.209113]
[1740222304676,0.25847004,96584.0,96583.0,0.209113]
[1740222305476,0.12382151,96584.0,96583.0,0.569913]
[1740222307787,0.12382151,96584.0,96583.0,0.677913]
[1740222310185,0.001,96584.0,96583.0,0.69410041]
[1740222311893,0.001,96584.0,96583.0,0.33330041]
[1740222312086,0.001,96584.0,96583.0,0.677913]
[1740222313878,0.001,96584.0,96583.0,0.86419864]
[1740222316392,0.00015494,96589.0,96583.0,0.65708564]
[1740222316696,0.00015494,96589.0,96588.0,0.2071023]
[1740222317084,0.00015494,96589.0,96588.0,0.2698023]
[1740222318189,0.00015494,96589.0,96588.0,0.2708023]
[1740222318392,0.00015494,96589.0,96588.0,0.2718023]
[1740222318790,0.00015494,96589.0,96588.0,0.3042023]
[1740222324401,0.00015494,96589.0,96588.0,0.33038849]
[1740222325798,0.00015494,96589.0,96588.0,0.33038847]
[1740222326195,0.00015494,96589.0,96588.0,0.50048794]
[1740222326400,0.0317,96600.0,96599.0,0.2070787]
[1740222327099,0.0317,96600.0,96599.0,0.2372787]
[1740222327495,0.0317,96600.0,96599.0,0.2392787]
[1740222328089,0.0317,96600.0,96599.0,0.24950801]
[1740222328403,0.393,96601.0,96600.0,0.2070766]
[1740222330502,0.393,96601.0,96600.0,0.2080766]
[1740222331395,0.393,96601.0,96600.0,0.2090766]
[1740222333406,0.6000744,96601.0,96600.0,0.2090766]
[1740222333603,0.393,96601.0,96600.0,0.2090766]
[1740222336508,0.0322,96601.0,96600.0,0.2090766]
[1740222341213,0.08254885,96601.0,96600.0,0.2090766]
[1740222343714,0.28962325,96601.0,96600.0,0.2090766]
[1740222344015,0.32072325,96601.0,96600.0,0.002]
[1740222344220,0.32072325,96601.0,96600.0,0.2090766]
[1740222345019,0.2703744,96601.0,96600.0,0.2090766]
[1740222353221,0.32072325,96601.0,96600.0,0.2080766]
[1740222353615,0.32072325,96601.0,96600.0,0.2070766]
[1740222358419,0.32072325,96601.0,96600.0,0.2375766]
[1740222359419,0.28962325,96601.0,96600.0,0.2375766]
[1740222362124,0.2392744,96601.0,96600.0,0.2375766]
[1740222366131,0.0322,96601.0,96600.0,0.2375766]
[1740222366533,0.2392744,96601.0,96600.0,0.2375766]
[1740222369731,0.28962325,96601.0,96600.0,0.2375766]
[1740222379933,0.2392744,96601.0,96600.0,0.2375766]
[1740222382338,0.2070787,96599.0,96598.0,0.09316]
[1740222382843,0.2070787,96599.0,96597.0,0.24748997]
[1740222382844,0.0517697,96599.0,96597.0,0.24748997]
[1740222383036,0.2723808,96598.0,96597.0,0.45457197]
[1740222383631,0.2723808,96598.0,96597.0,0.45457297]
[1740222384641,0.2723808,96598.0,96597.0,0.22326969]
[1740222386946,0.2723808,96598.0,96597.0,0.22326896]
[1740222387149,0.2395808,96598.0,96597.0,0.22326896]
[1740222387544,0.2395808,96598.0,96597.0,0.207083]
[1740222391248,0.0325,96598.0,96597.0,0.207083]
[1740222391449,0.2395808,96598.0,96597.0,0.207083]
[1740222391649,0.15527152,96601.0,96600.0,0.2070766]
[1740222392444,0.051767,96604.0,96598.0,0.0301]
[1740222392747,0.051767,96604.0,96599.0,0.2070787]
[1740222392748,0.0309,96600.0,96599.0,0.2070787]
[1740222393560,0.2379766,96600.0,96599.0,0.2070787]
[1740222394054,0.2070787,96599.0,96598.0,0.10768]
[1740222394259,0.2381787,96599.0,96598.0,0.3147608]
[1740222394552,0.2381787,96599.0,96598.0,0.33094685]
[1740222397241,0.0311,96599.0,96598.0,0.33094685]
[1740222398653,0.0311,96599.0,96598.0,0.2070808]
[1740222398854,0.0311,96599.0,96598.0,0.22326643]
[1740222400149,0.0309,96600.0,96598.0,0.01618563]
[1740222400355,0.0309,96600.0,96599.0,0.22326433]
[1740222400657,0.0301,96607.0,96599.0,0.01618563]
[1740222400856,0.0301,96607.0,96597.0,0.32720897]
[1740222400857,0.2683628,96607.0,96606.0,0.2070637]
[1740222401159,0.2683628,96607.0,96606.0,0.2232487]
[1740222401545,0.2683628,96607.0,96606.0,0.2546487]
[1740222402352,0.2683616,96607.0,96606.0,0.2546487]
[1740222402556,0.2683616,96607.0,96606.0,0.2384637]
[1740222417669,0.0613,96607.0,96606.0,0.2384637]
[1740222417975,0.15523115,96610.0,96609.0,0.2070573]
[1740222418262,0.15523115,96610.0,96609.0,0.58404227]
[1740222418860,0.15523115,96610.0,96609.0,0.58404052]
[1740222421373,0.2070516,96612.0,96611.0,0.207053]
[1740222421865,0.2070516,96612.0,96611.0,0.22323641]
[1740222422271,0.2070516,96612.0,96611.0,0.207053]
[1740222427875,0.44367432,96612.0,96611.0,0.207053]
[1740222428281,0.2070551,96610.0,96609.0,0.06727]
[1740222428668,0.2070551,96610.0,96609.0,0.2743273]
[1740222428864,0.2070551,96610.0,96609.0,0.06727]
[1740222429069,0.2070551,96610.0,96609.0,0.06511506]
[1740222429676,0.2070551,96610.0,96609.0,0.27217236]
[1740222430273,0.2070551,96610.0,96609.0,0.06511506]
[1740222430669,0.2070551,96610.0,96609.0,0.0414]
[1740222430971,0.2070594,96608.0,96607.0,0.2070608]
[1740222431176,0.2070594,96608.0,96606.0,0.2070632]
[1740222431177,0.2588291,96607.0,96606.0,0.2070632]
[1740222431381,0.3233291,96607.0,96606.0,0.2070632]
[1740222433579,0.2070637,96606.0,96605.0,0.2329347]
[1740222433785,0.2394637,96606.0,96605.0,0.2329347]
[1740222433985,0.2394637,96606.0,96605.0,0.2070647]
[1740222436782,0.24973786,96606.0,96605.0,0.2070647]
[1740222436976,0.207068,96604.0,96603.0,0.02587]
[1740222437176,0.181198,96604.0,96603.0,0.2329401]
[1740222439486,0.181198,96604.0,96603.0,0.2070701]
[1740222440581,0.2070701,96603.0,96602.0,0.2193393]
[1740222443284,0.44357016,96603.0,96602.0,0.2193393]
[1740222443586,0.44357016,96603.0,96602.0,0.2070693]
[1740222444891,0.44357016,96603.0,96600.0,0.2378723]
[1740222444892,0.2070744,96601.0,96600.0,0.2378723]
[1740222445492,0.2070744,96601.0,96600.0,0.0308]
[1740222445788,0.2396744,96601.0,96600.0,0.2378766]
[1740222454593,0.2396744,96601.0,96600.0,0.0308]
[1740222454790,0.2396744,96601.0,96600.0,0.2378766]
[1740222465395,0.0326,96601.0,96599.0,0.01227]
[1740222465610,0.2070766,96600.0,96599.0,0.01227]
[1740222465796,0.4451686,96601.0,96598.0,0.02588]
[1740222465997,0.4451686,96601.0,96576.0,0.0304]
[1740222466205,0.5678959,96591.0,96582.0,0.0517783]
[1740222466404,0.6752959,96591.0,96590.0,0.20725331]
[1740222466614,0.7069959,96591.0,96590.0,0.20725331]
[1740222466809,0.5995959,96591.0,96590.0,0.20725331]
[1740222467110,0.5995959,96591.0,96590.0,0.23805331]
[1740222467111,0.5678959,96591.0,96590.0,0.23805331]
[1740222467308,0.3608,96591.0,96590.0,0.23805331]
[1740222467897,0.3106408,96595.0,96594.0,0.2070894]
[1740222468312,0.3106408,96595.0,96594.0,0.2397894]
[1740222469809,0.3106408,96595.0,96594.0,0.2417894]
[1740222474314,0.2588679,96595.0,96594.0,0.2417894]
[1740222474707,0.0517713,96596.0,96595.0,0.2588542]
[1740222475009,0.2588556,96598.0,96597.0,0.207083]
[1740222475212,0.2070851,96598.0,96597.0,0.207083]
[1740222475403,0.2070851,96598.0,96597.0,0.238083]
[1740222476704,0.2070851,96598.0,96597.0,0.598883]
[1740222476910,0.1864501,96600.0,96597.0,0.4435706]
[1740222477109,0.1864501,96600.0,96599.0,0.2070787]
[1740222478515,0.26936145,96601.0,96600.0,0.2070766]
[1740222484220,0.1551581,96609.0,96608.0,0.2070594]
[1740222484816,0.1551581,96609.0,96608.0,0.2387594]
[1740222486214,0.1551581,96609.0,96608.0,0.2417594]
[1740222486414,0.1551581,96609.0,96608.0,0.2447594]
[1740222488315,0.3622154,96609.0,96608.0,0.2447594]
[1740222488521,0.1551581,96609.0,96608.0,0.2447594]
[1740222488716,0.2070545,96611.0,96610.0,0.2588167]
[1740222490426,0.2070545,96611.0,96610.0,0.2608167]
[1740222491321,0.2070545,96611.0,96610.0,0.2628167]
[1740222497123,0.3622126,96611.0,96610.0,0.2628167]
[1740222499423,0.3944126,96611.0,96610.0,0.2628167]
[1740222500533,0.28959907,96611.0,96610.0,0.2628167]
[1740222501525,0.28959907,96611.0,96610.0,0.2608167]
[1740222501831,0.28959907,96611.0,96610.0,0.2628167]
[1740222505439,0.2392545,96611.0,96610.0,0.2628167]
[1740222509839,0.2392545,96611.0,96610.0,0.2608167]
[1740222510033,0.2392545,96611.0,96610.0,0.2628167]
[1740222510437,0.2392545,96611.0,96610.0,0.2608167]
[1740222510629,0.2392545,96611.0,96610.0,0.2628167]
[1740222512241,0.2392545,96611.0,96610.0,0.211053]
[1740222513538,0.2392545,96611.0,96610.0,0.209053]
[1740222513846,0.2392545,96611.0,96610.0,0.211053]
[1740222514444,0.2070545,96611.0,96610.0,0.211053]
[1740222515536,0.2394545,96611.0,96610.0,0.211053]
[1740222518741,0.3660643,96611.0,96610.0,0.211053]
[1740222519449,0.3660643,96611.0,96610.0,0.209053]
[1740222519662,0.3660643,96611.0,96610.0,0.211053]
[1740222520047,0.3660643,96611.0,96610.0,0.209053]
[1740222520251,0.3660643,96611.0,96610.0,0.211053]
[1740222522749,0.3660643,96611.0,96610.0,0.209053]
[1740222522943,0.3660643,96611.0,96610.0,0.211053]
[1740222526049,0.28979995,96611.0,96610.0,0.211053]
[1740222532349,0.28979995,96611.0,96610.0,0.209053]
[1740222532845,0.28979995,96611.0,96610.0,0.211053]
[1740222533051,0.36591837,96611.0,96610.0,0.211053]
[1740222542669,0.28979995,96611.0,96610.0,0.211053]
[1740222545657,0.28979995,96611.0,96610.0,0.210053]
[1740222545867,0.25739995,96611.0,96610.0,0.210053]
[1740222546971,0.25739995,96611.0,96610.0,0.209053]
[1740222551877,0.33593775,96611.0,96610.0,0.209053]
[1740222552874,0.36703775,96611.0,96610.0,0.002]
[1740222554173,0.72783775,96611.0,96610.0,0.002]
[1740222555373,0.72783775,96611.0,96609.0,0.05712]
[1740222555374,0.2070551,96610.0,96609.0,1e-07]
[1740222555776,0.2070959,96591.0,96589.0,0.18624679]
[1740222555971,0.2070959,96591.0,96590.0,0.24848437]
[1740222555972,0.5678959,96591.0,96590.0,0.24848437]
[1740222556480,0.64224959,96591.0,96590.0,0.24848437]
[1740222557173,0.64224959,96591.0,96590.0,0.25248437]
[1740222558573,0.64224959,96591.0,96590.0,0.25648437]
[1740222560379,0.69259504,96591.0,96590.0,0.00815531]
[1740222565187,0.61824135,96591.0,96590.0,0.21525331]
[1740222568181,0.36181132,96591.0,96590.0,0.21525331]
[1740222573692,0.2070959,96591.0,96590.0,0.21525331]
[1740222584603,0.5678959,96591.0,96590.0,0.21525331]
[1740222585803,0.70433405,96591.0,96590.0,0.21525331]
[1740222586109,0.34353405,96591.0,96590.0,0.21525331]
[1740222586306,0.70433405,96591.0,96590.0,0.21525331]
[1740222587409,0.70433405,96591.0,96590.0,0.00815531]
[1740222587614,0.73503405,96591.0,96590.0,0.00815531]
[1740222587809,0.76673405,96591.0,96590.0,0.00815531]
[1740222589721,0.86645459,96591.0,96590.0,0.00815531]
[1740222592224,0.50565459,96591.0,96590.0,0.00815531]
[1740222592412,0.86645459,96591.0,96590.0,0.00815531]
[1740222594424,0.86681126,96591.0,96590.0,0.00815531]
[1740222597122,0.65971536,96591.0,96589.0,0.04141]
[1740222597337,0.2071345,96573.0,96572.0,0.1860441]
[1740222597627,0.5679345,96573.0,96572.0,0.1860441]
[1740222598329,0.5629345,96573.0,96572.0,0.1860441]
[1740222598630,0.5589345,96573.0,96572.0,0.1860441]
[1740222599129,0.5589345,96573.0,96572.0,0.1930441]
[1740222600020,0.5589345,96573.0,96572.0,0.007]
[1740222600417,0.5589345,96573.0,96572.0,0.014]
[1740222601424,0.5589345,96573.0,96572.0,0.0442]
[1740222603324,0.56918739,96573.0,96572.0,0.0442]
[1740222607533,0.61955716,96573.0,96572.0,0.0442]
[1740222612328,0.72401054,96573.0,96572.0,0.0442]
[1740222613035,0.36321054,96573.0,96572.0,0.0442]
[1740222613437,0.72401054,96573.0,96572.0,0.0442]
[1740222615328,0.72401054,96573.0,96572.0,0.014]
[1740222615545,0.75711054,96573.0,96572.0,0.014]
[1740222616931,0.60228739,96573.0,96572.0,0.014]
[1740222617439,0.60228739,96573.0,96572.0,0.007]
[1740222617644,0.57018739,96573.0,96572.0,0.014]
[1740222617835,0.5599345,96573.0,96572.0,0.2512366]
[1740222618239,0.1991345,96573.0,96572.0,0.2512366]
[1740222618638,0.1991345,96573.0,96572.0,0.2442366]
[1740222618639,0.001,96573.0,96572.0,0.2442366]
[1740222618838,0.4275209,96581.0,96580.0,0.2071194]
[1740222620033,0.4285209,96581.0,96580.0,0.2131194]
[1740222620746,0.2081209,96581.0,96580.0,0.2131194]
[1740222621343,0.2081209,96581.0,96580.0,0.2181194]
[1740222624745,0.2081173,96581.0,96580.0,0.2181194]
[1740222625244,0.05136198,96581.0,96580.0,0.2181194]
[1740222626832,0.05136198,96581.0,96580.0,0.3248794]
[1740222627942,0.25847928,96581.0,96580.0,0.3248794]
[1740222629448,0.25847928,96581.0,96580.0,0.6856794]
[1740222629841,0.2081173,96581.0,96580.0,0.6856794]
[1740222636147,0.2081173,96581.0,96580.0,0.7183794]
[1740222637251,0.2081173,96581.0,96580.0,0.6856794]
[1740222638649,0.2081173,96581.0,96580.0,0.5789194]
[1740222638848,0.2081173,96581.0,96580.0,0.6855994]
[1740222640561,0.2081173,96581.0,96580.0,0.47848]
[1740222641457,0.2081173,96581.0,96580.0,0.6855994]
[1740222641654,0.2081173,96581.0,96580.0,0.47848]
[1740222642244,0.2081173,96581.0,96580.0,0.3718]
[1740222642559,0.2081173,96581.0,96580.0,0.011]
[1740222644460,0.25847902,96581.0,96580.0,0.2181194]
[1740222645750,0.25847902,96581.0,96580.0,0.011]
[1740222647968,0.2081173,96581.0,96580.0,0.011]
[1740222657981,0.2081173,96581.0,96580.0,0.0418]
[1740222659174,0.2081173,96581.0,96580.0,0.2489194]
[1740222662178,0.2081173,96581.0,96580.0,0.0418]
[1740222664170,0.25847744,96581.0,96580.0,0.0418]
[1740222664680,0.28987744,96581.0,96580.0,0.0418]
[1740222666989,0.65067744,96581.0,96580.0,0.0418]
[1740222675993,0.28987744,96581.0,96580.0,0.0418]